bitfinex-derivatives/quotes_ETHF0:USTF0_20250410
["timestamp","ask_amount","ask_price","bid_price","bid_amount"]
[1744245332463,4.42313,1646.1,1645.8,1.2155]
[1744245332464,1.21552,1645.9,1645.5,5.022]
[1744245332664,4.42332,1645.9,1645.6,2.9112]
[1744245332866,3.2078,1645.9,1645.6,2.9112]
[1744245333059,3.2078,1645.9,1645.7,1.21555]
[1744245333260,4.42328,1645.9,1645.8,2.9112]
[1744245333654,3.2078,1645.9,1645.8,4.12675]
[1744245333854,1.21527,1646.2,1646.0,1.21538]
[1744245334056,3.21688568,1646.3,1646.2,1.21525]
[1744245334267,0.00908568,1646.3,1646.2,1.21525]
[1744245334470,0.00908568,1646.3,1646.2,6.21525]
[1744245334655,0.00908568,1646.3,1646.1,44.91326]
[1744245334966,1.22428568,1646.3,1646.2,2.898]
[1744245335269,3.21688568,1646.3,1646.2,4.11325]
[1744245335467,4.43206568,1646.3,1646.2,2.898]
[1744245336263,13.24188568,1646.3,1645.6,6.247]
[1744245336474,4.42318,1646.1,1646.0,2.898]
[1744245336861,4.42318,1646.1,1646.0,4.1134]
[1744245337162,3.2078,1646.1,1646.0,2.898]
[1744245337367,0.00908568,1646.3,1646.2,1.21525]
[1744245337766,1.21531,1646.2,1646.0,2.898]
[1744245337968,1.21533,1646.1,1646.0,2.898]
[1744245338370,1.2154,1646.0,1645.6,3.03919]
[1744245338561,1.21535,1646.1,1646.0,1.21539]
[1744245338866,1.22426568,1646.3,1645.9,3.03869]
[1744245339067,0.00908568,1646.3,1646.1,1.21526]
[1744245339265,1.21533,1646.2,1646.0,1.21533]
[1744245339460,1.21533,1646.2,1646.1,1.21533]
[1744245339654,1.21531,1646.2,1645.8,3.03888]
[1744245339860,5.96258568,1646.3,1645.7,58.06769]
[1744245340071,1.21528,1646.2,1646.1,1.2153]
[1744245340563,3.97001568,1646.3,1645.7,14.2288]
[1744245340764,3.97001568,1646.3,1646.2,1.21525]
[1744245341067,1.22431568,1646.3,1646.2,1.21525]
[1744245341467,0.00908568,1646.3,1646.2,1.21525]
[1744245342165,0.00908568,1646.3,1646.2,4.18745]
[1744245342565,0.00908568,1646.3,1646.2,2.35557361]
[1744245342869,0.00908568,1646.3,1646.2,3.57082361]
[1744245343166,1.22426568,1646.3,1646.2,3.57082361]
[1744245343361,0.00908568,1646.3,1646.2,3.57082361]
[1744245343768,0.00908568,1646.3,1646.2,8.57082361]
[1744245344968,1.21475,1646.9,1646.3,6.07584]
[1744245345167,1.21475,1646.9,1646.8,1.21481]
[1744245345872,1.21484,1646.8,1646.7,1.21483]
[1744245346166,7.12363,1647.0,1646.9,1.21474]
[1744245346563,4.42253,1647.0,1646.9,1.21474]
[1744245346965,3.2078,1647.0,1646.9,1.21474]
[1744245347864,4.42246,1647.0,1646.9,1.21474]
[1744245348065,3.96796494,1647.1,1647.0,1.21466]
[1744245349584,0.00911494,1647.1,1647.0,1.21466]
[1744245349872,0.00911494,1647.1,1647.0,4.42246]
[1744245350076,0.00911494,1647.1,1647.0,9.44746]
[1744245350480,3.2078,1647.5,1647.4,1.21437]
[1744245350776,1.21426,1647.6,1647.4,0.02088623]
[1744245350977,5.8927,1647.8,1647.4,0.02088623]
[1744245351276,1.2142,1647.7,1647.6,1.23508623]
[1744245351779,4.43104494,1647.8,1647.7,1.21415]
[1744245352076,0.00911494,1647.8,1647.7,3.93225]
[1744245352276,0.00911494,1647.8,1647.7,2.73898623]
[1744245352484,4.43098494,1647.8,1647.7,0.02088623]
[1744245352781,9.43098494,1647.8,1647.7,0.02088623]
[1744245353279,4.43098494,1647.8,1647.7,0.02088623]
[1744245353677,2.66951494,1647.8,1647.7,1.23503623]
[1744245353882,3.88358494,1647.8,1647.7,3.95313623]
[1744245354182,3.88358494,1647.8,1647.7,2.73898623]
[1744245354381,3.88358494,1647.8,1647.7,3.95313623]
[1744245354583,2.66951494,1647.8,1647.7,3.95313623]
[1744245354780,7.09138494,1647.8,1647.7,0.02088623]
[1744245354976,12.09138494,1647.8,1647.7,0.02088623]
[1744245355281,7.09138494,1647.8,1647.7,0.02088623]
[1744245355971,5.87731494,1647.8,1647.7,0.02088623]
[1744245356283,1.22318494,1647.8,1647.7,0.02088623]
[1744245356584,4.43098494,1647.8,1647.7,0.02088623]
[1744245357382,20.28798494,1647.8,1647.7,0.02088623]
[1744245357576,22.90398494,1647.8,1647.7,0.02088623]
[1744245357780,22.90398494,1647.8,1647.7,6.23e-06]
[1744245358381,1.21422,1647.6,1647.5,0.00911494]
[1744245358571,4.42202,1647.6,1647.5,0.00911494]
[1744245358774,9.42202,1647.6,1647.5,0.00911494]
[1744245360274,4.42202,1647.6,1647.5,0.00911494]
[1744245361278,5.84311494,1647.8,1647.5,0.00911494]
[1744245361473,2.80731494,1647.8,1647.5,0.00911494]
[1744245361678,6.01511494,1647.8,1647.5,2.54301494]
[1744245361881,1.21422,1647.6,1647.5,0.00911494]
[1744245362079,4.42202,1647.6,1647.5,0.00911494]
[1744245362379,4.42202,1647.6,1647.5,1.22341494]
[1744245362885,4.02145494,1647.8,1647.7,1.21415]
[1744245363086,4.02145494,1647.8,1647.6,1.21415]
[1744245363087,1.21417,1647.7,1647.6,1.21415]
[1744245363288,4.02144494,1647.8,1647.7,1.21415]
[1744245364385,1.21419,1647.7,1647.6,1.21416]
[1744245364592,1.22321494,1647.8,1647.7,1.21415]
[1744245365288,1.2142,1647.7,1647.6,1.21416]
[1744245365493,1.22325494,1647.8,1647.7,1.21415]
[1744245365691,0.00911494,1647.8,1647.7,1.21415]
[1744245365986,0.00911494,1647.8,1647.7,8.76925]
[1744245366288,0.00911494,1647.8,1647.7,14.76525]
[1744245366498,4.63250562,1648.2,1648.1,1.21385]
[1744245367194,4.63250562,1648.2,1648.1,6.21385]
[1744245367494,8.16248843,1648.3,1648.2,1.21378]
[1744245367795,6.95787337,1648.3,1648.2,1.21378]
[1744245367988,6.95787337,1648.3,1648.2,8.79438]
[1744245368386,6.95787337,1648.3,1648.2,13.89038]
[1744245370284,6.95787337,1648.3,1648.2,19.88638]
[1744245370788,9.09082373,1648.5,1648.4,1.21363]
[1744245370994,9.09082373,1648.5,1648.4,4.42143]
[1744245371293,10.30438373,1648.5,1648.4,1.21363]
[1744245371594,9.09082373,1648.5,1648.4,42.01363]
[1744245371797,10.30438373,1648.5,1648.4,42.01363]
[1744245371994,9.09082373,1648.5,1648.4,42.01363]
[1744245372391,10.30438373,1648.5,1648.4,42.01363]
[1744245372587,2.84341494,1648.6,1648.5,1.21356]
[1744245372788,4.05697494,1648.6,1648.5,1.21356]
[1744245372995,2.84341494,1648.6,1648.5,1.21356]
[1744245373190,4.05690494,1648.6,1648.5,1.21356]
[1744245374095,4.05695494,1648.6,1648.4,43.71071494]
[1744245374396,4.05695494,1648.6,1648.5,1.21356]
[1744245374593,2.84341494,1648.6,1648.4,43.71071494]
[1744245374794,4.05695494,1648.6,1648.5,1.21356]
[1744245374996,1.21356,1648.5,1648.4,44.92429494]
[1744245375193,7.11376,1648.5,1648.4,40.80911494]
[1744245375396,12.11376,1648.5,1648.4,0.00911494]
[1744245375587,14.99546,1648.5,1648.4,0.00911494]
[1744245375788,14.99546,1648.5,1648.0,6.8642]
[1744245375789,1.21385,1648.1,1648.0,1.2139]
[1744245376093,1.21393,1648.1,1648.0,1.2139]
[1744245376292,5.9002,1648.2,1647.9,1.21397]
[1744245376493,1.21412,1647.8,1647.7,1.2141]
[1744245376697,0.02088,1647.8,1647.7,1.2141]
[1744245377187,0.02088,1647.8,1647.7,6.2141]
[1744245377889,0.02088,1647.8,1647.7,9.1079]
[1744245379098,0.02088,1647.8,1647.7,7.3157]
[1744245379298,0.02088,1647.8,1647.7,4.1079]
[1744245379501,1.23495,1647.8,1647.7,4.1079]
[1744245379686,1.21415,1647.7,1647.6,1.22327494]
[1744245379890,1.21415,1647.7,1647.6,4.10069494]
[1744245380091,1.23503,1647.7,1647.6,4.10069494]
[1744245380293,1.23503,1647.7,1647.6,0.00911494]
[1744245380589,4.44283,1647.7,1647.6,0.00911494]
[1744245381191,1.23503,1647.7,1647.6,1.22333494]
[1744245381590,0.02088,1647.7,1647.6,1.22333494]
[1744245381902,0.02088,1647.7,1647.6,11.88463494]
[1744245383800,1.21376,1648.3,1648.2,1.21375]
[1744245384003,6.016,1648.4,1648.2,0.02088623]
[1744245384301,1.21371,1648.3,1648.2,1.23466623]
[1744245384502,1.21371,1648.3,1648.2,0.02088623]
[1744245387007,7.04771,1648.3,1648.2,0.02088623]
[1744245387307,1.21411,1647.8,1647.7,1.21415]
[1744245387507,1.23499623,1647.8,1647.7,4.02935]
[1744245389310,1.21415,1647.7,1647.6,0.00911494]
[1744245389616,1.23503623,1647.7,1647.6,0.00911494]
[1744245389806,0.02088623,1647.7,1647.6,4.04763494]
[1744245391605,0.02088623,1647.7,1647.6,12.25543494]
[1744245391907,0.02088623,1647.7,1647.6,18.25143494]
[1744245392110,4.42164,1648.2,1648.1,1.21385]
[1744245392405,4.42164,1648.2,1648.1,1.23473623]
[1744245392606,4.42164,1648.2,1648.1,0.02088623]
[1744245392804,4.42164,1648.2,1648.1,1.23473623]
[1744245393008,9.04388236,1648.2,1648.1,1.23473623]
[1744245394001,5.83608236,1648.2,1648.1,1.23473623]
[1744245394210,5.83608236,1648.2,1648.1,0.02088623]
[1744245394405,5.83608236,1648.2,1648.1,1.23473623]
[1744245395204,8.60188236,1648.2,1648.1,1.23473623]
[1744245395399,7.38804236,1648.2,1648.1,1.23473623]
[1744245395709,8.60182236,1648.2,1648.1,1.23473623]
[1744245398110,3.97958,1648.2,1648.1,1.23473623]
[1744245398312,1.21372,1648.3,1648.2,1.21378]
[1744245398615,1.21371,1648.3,1648.2,2.9216]
[1744245398808,4.16041,1648.3,1648.2,0.02088623]
[1744245399308,5.83592236,1648.4,1648.3,1.21371]
[1744245399507,8.78262236,1648.4,1648.3,1.21371]
[1744245399705,4.62224236,1648.4,1648.3,1.21371]
[1744245399909,1.21378,1648.2,1648.1,3.95098]
[1744245400103,1.21378,1648.2,1648.1,1.21378]
[1744245400311,1.21381,1648.2,1648.1,1.2138]
[1744245400610,1.21381,1648.2,1648.1,4.1354]
[1744245401810,8.2078,1648.2,1648.0,5.996]
[1744245402012,2.9218,1648.1,1647.6,0.00911494]
[1744245402207,1.21415,1647.7,1647.6,0.00911494]
[1744245402613,1.23503623,1647.7,1647.6,0.00911494]
[1744245402913,1.23503623,1647.7,1647.6,2.80201494]
[1744245403215,1.23503623,1647.7,1647.6,0.00911494]
[1744245403714,4.44283623,1647.7,1647.6,0.00911494]
[1744245403914,9.91943623,1647.7,1647.6,0.00911494]
[1744245404214,1.21444,1647.3,1647.2,9.49477646]
[1744245404413,1.23532623,1647.3,1647.2,9.49477646]
[1744245405014,4.04682623,1647.3,1647.2,9.49477646]
[1744245405411,9.04682623,1647.3,1647.2,9.49477646]
[1744245406112,14.88082623,1647.3,1647.2,7.83307646]
[1744245406416,14.88082623,1647.3,1646.9,16.80329603]
[1744245406417,1.21466,1647.0,1646.9,16.80329603]
[1744245406717,1.21466,1647.0,1646.4,9.50316435]
[1744245406718,1.21503,1646.5,1646.4,9.50316435]
[1744245406913,1.23591623,1646.5,1646.4,9.50316435]
[1744245407615,1.23591623,1646.5,1646.4,12.31226435]
[1744245407817,0.02088623,1646.5,1646.4,13.52737435]
[1744245408115,1.23591623,1646.5,1646.4,9.50316435]
[1744245408314,4.44371623,1646.5,1646.4,9.50316435]
[1744245408821,0.02088623,1646.5,1646.4,10.71827435]
[1744245409116,0.02088623,1646.5,1646.4,13.52737435]
[1744245409511,1.23591623,1646.5,1646.4,9.50316435]
[1744245410220,3.94371623,1646.5,1646.4,12.42916435]
[1744245410521,9.77771623,1646.5,1646.4,9.50316435]
[1744245410719,14.77771623,1646.5,1646.4,9.50316435]
[1744245410919,15.69471623,1646.5,1646.4,8.26119435]
[1744245411214,1.21511,1646.4,1646.3,6.85684806]
[1744245411420,7.15159623,1646.4,1646.3,4.94e-06]
[1744245411717,12.15159623,1646.4,1646.3,4.94e-06]
[1744245414825,12.98559623,1646.4,1646.3,4.94e-06]
[1744245415318,12.98559623,1646.4,1646.3,2.79480494]
[1744245415517,17.62342126,1646.4,1646.3,2.79480494]
[1744245415821,17.62342126,1646.4,1646.3,4.94e-06]
[1744245416626,22.62342126,1646.4,1646.3,4.94e-06]
[1744245417823,17.62342126,1646.4,1646.3,4.94e-06]
[1744245418819,12.98559623,1646.4,1646.3,4.94e-06]
[1744245419122,12.98559623,1646.4,1646.0,25.0]
[1744245419123,1.21533,1646.1,1646.0,25.0]
[1744245419622,1.23621623,1646.1,1646.0,27.6876]
[1744245419812,1.23621623,1646.1,1646.0,28.903]
[1744245420014,1.23621623,1646.1,1646.0,27.6876]
[1744245420422,4.16621623,1646.1,1646.0,27.6876]
[1744245420624,4.16621623,1646.1,1646.0,25.0]
[1744245421225,15.00021623,1646.1,1646.0,23.72523]
[1744245421422,1.21577,1645.5,1645.4,2.6876]
[1744245421721,1.21592,1645.3,1645.2,0.10996607]
[1744245421925,4.42372,1645.3,1645.2,6.07e-06]
[1744245422130,9.44460623,1645.3,1645.2,6.07e-06]
[1744245422321,1.21636,1644.7,1644.6,2.8402]
[1744245422627,14.30865623,1645.3,1645.2,6.07519432]
[1744245422628,1.21594,1645.3,1645.2,6.07519432]
[1744245422826,1.21601,1645.2,1645.0,1.2161]
[1744245423124,4.927,1645.4,1644.9,11.86199432]
[1744245423320,4.927,1645.4,1645.0,3.2078]
[1744245423520,4.927,1645.4,1645.3,1.21592]
[1744245423722,0.00911494,1645.6,1645.2,6.24779]
[1744245423929,0.00911494,1645.6,1645.5,1.21577]
[1744245424223,0.00911494,1645.6,1645.5,6.21577]
[1744245424432,0.00911494,1645.6,1645.5,12.29096432]
[1744245424624,3.2078,1645.8,1645.7,1.21562]
[1744245425024,4.42335,1645.8,1645.7,6.07519432]
[1744245425425,3.2078,1645.8,1645.7,7.29081432]
[1744245425618,1.21548,1645.9,1645.8,1.21552]
[1744245425821,1.21548,1645.9,1645.8,6.07519432]
[1744245426223,4.42328,1645.9,1645.8,6.07519432]
[1744245426428,1.21555,1645.8,1645.7,0.00911494]
[1744245426824,11.97655,1645.8,1645.7,0.00911494]
[1744245427026,16.98965,1645.8,1645.7,0.00911494]
[1744245428129,16.98965,1645.8,1645.7,4.94e-06]
[1744245429031,16.99065,1645.8,1645.7,4.94e-06]
[1744245429331,11.99065,1645.8,1645.7,4.94e-06]
[1744245431129,7.06265,1645.8,1645.7,4.94e-06]
[1744245431324,11.99065,1645.8,1645.7,4.94e-06]
[1744245431925,11.97755,1645.8,1645.7,4.94e-06]
[1744245432132,7.04955,1645.8,1645.7,4.94e-06]
[1744245432334,11.97755,1645.8,1645.7,6.07439926]
[1744245432538,11.97755,1645.8,1645.7,7.29001926]
[1744245432830,6.14355,1645.8,1645.7,10.10181926]
[1744245433025,3.2078,1645.9,1645.8,1.21555]
[1744245433225,4.42328,1645.9,1645.8,6.07439926]
[1744245434036,1.21555,1645.8,1645.7,2.8118]
[1744245434227,1.21555,1645.8,1645.7,8.88619926]
[1744245434936,1.21555,1645.8,1645.7,2.8118]
[1744245435530,3.2078,1645.9,1645.8,1.21555]
[1744245435835,0.00911494,1646.0,1645.8,1.21555]
[1744245435836,0.00911494,1646.0,1645.9,1.21548]
[1744245436030,1.22451494,1646.0,1645.9,8.85009926]
[1744245436237,4.43231494,1646.0,1645.9,8.85009926]
[1744245436738,9.36031494,1646.0,1645.9,2.7757]
[1744245437228,3.21691494,1646.0,1645.9,10.06557926]
[1744245437437,0.00911494,1646.0,1645.9,10.06557926]
[1744245437821,9.0418,1646.2,1645.9,8.85009926]
[1744245438028,1.21537,1646.1,1646.0,10.06696926]
[1744245438224,1.21537,1646.1,1646.0,8.85159926]
[1744245438728,1.21537,1646.1,1646.0,10.06699926]
[1744245440326,3.21691494,1646.2,1646.1,1.21533]
[1744245440636,0.00911494,1646.2,1646.1,10.07602926]
[1744245440832,10.25692,1646.4,1646.3,1.21518]
[1744245441035,10.25692,1646.4,1646.1,15.07602926]
[1744245441036,1.21506,1646.5,1646.4,1.21511]
[1744245441230,1.21513,1646.4,1646.3,1.21512]
[1744245441435,4.42288,1646.5,1646.4,1.21511]
[1744245441636,4.42288,1646.5,1646.4,10.07580926]
[1744245441939,4.42288,1646.5,1646.4,8.86069926]
[1744245442838,4.42288,1646.5,1646.4,10.07580926]
[1744245443034,1.21508,1646.5,1646.4,10.07580926]
[1744245443240,11.98609494,1646.6,1646.5,1.21503]
[1744245443441,4.63782503,1646.8,1646.7,1.21489]
[1744245443640,0.16652503,1646.8,1646.6,12.07039926]
[1744245443840,1.38133503,1646.8,1646.7,6.07439926]
[1744245444038,1.38133503,1646.8,1646.5,2.9189]
[1744245444039,1.21496,1646.6,1646.5,2.9189]
[1744245444242,1.21496,1646.6,1646.5,4.13393]
[1744245444540,1.21496,1646.6,1646.5,10.20832926]
[1744245444745,1.22406494,1646.7,1646.5,10.20832926]
[1744245444942,1.22406494,1646.7,1646.6,6.07439926]
[1744245445547,4.43186494,1646.7,1646.6,6.07439926]
[1744245445746,1.21496,1646.6,1646.5,2.9189]
[1744245446046,1.30396,1646.6,1646.5,8.99329926]
[1744245446246,6.23096,1646.6,1646.5,8.99329926]
[1744245446443,6.14196,1646.6,1646.5,8.99329926]
[1744245447050,4.43185494,1646.7,1646.6,1.21496]
[1744245447242,4.43185494,1646.7,1646.6,8.84769926]
[1744245447546,4.43185494,1646.7,1646.6,2.7733]
[1744245447747,1.21496,1646.6,1646.5,2.9189]
[1744245447950,1.21496,1646.6,1646.5,8.99329926]
[1744245449066,1.21496,1646.6,1646.5,11.76659926]
[1744245451744,1.21533,1646.1,1645.8,3.2078]
[1744245451951,4.4232,1646.0,1645.9,10.3734542]
[1744245452442,4.4232,1646.0,1645.9,0.00911494]
[1744245452846,4.4232,1646.0,1645.9,4.7400542]
[1744245453049,4.4232,1646.0,1645.9,0.00911494]
[1744245453440,9.4232,1646.0,1645.9,0.00911494]
[1744245453643,12.1626,1646.0,1645.9,0.00911494]
[1744245453950,7.1626,1646.0,1645.9,0.00911494]
[1744245454858,1.2153,1646.2,1645.9,9.7400542]
[1744245455153,1.21519,1646.3,1646.0,7.65643926]
[1744245455354,1.21519,1646.3,1646.1,3.96097]
[1744245455553,9.30795,1646.4,1646.2,3.95905]
[1744245455752,1.21518,1646.3,1646.2,7.47473926]
[1744245455951,8.0928,1646.4,1646.3,5.94611926]
[1744245456448,1.21507,1646.5,1646.3,4.73093926]
[1744245456644,1.21507,1646.5,1646.4,7.47473926]
[1744245457054,4.42281,1646.6,1646.4,7.47473926]
[1744245457246,4.42281,1646.6,1646.5,4.73093926]
[1744245457446,4.42281,1646.6,1646.5,7.47473926]
[1744245457652,1.21496,1646.6,1646.5,8.68976926]
[1744245457848,11.94304494,1646.7,1646.6,1.21496]
[1744245458053,8.10191494,1646.7,1646.6,8.69159926]
[1744245458358,6.10900494,1646.7,1646.6,10.43813926]
[1744245458858,1.22400494,1646.7,1646.6,10.43813926]
[1744245459056,1.22400494,1646.7,1646.6,11.65309926]
[1744245459252,1.22400494,1646.7,1646.6,10.43813926]
[1744245460865,4.43180494,1646.7,1646.6,4.9701005]
[1744245464355,1.21525,1646.2,1645.9,3.04771494]
[1744245464559,3.03763,1646.5,1646.3,1.21518]
[1744245464858,1.21508,1646.5,1646.4,1.21509]
[1744245465052,1.215,1646.6,1646.5,1.215]
[1744245465254,11.13816494,1646.7,1646.2,8.0848605]
[1744245465458,8.10091494,1646.7,1646.4,3.0411]
[1744245465763,1.21496,1646.6,1646.5,2.9023]
[1744245465958,1.21496,1646.6,1646.5,7.9542005]
[1744245466763,1.21496,1646.6,1646.5,5.9456]
[1744245466963,1.21496,1646.6,1646.5,7.9542005]
[1744245468564,1.21496,1646.6,1646.5,3.0433]
[1744245468565,4.18816,1646.6,1646.5,3.0433]
[1744245468858,4.18816,1646.6,1646.5,5.0519005]
[1744245469367,4.18816,1646.6,1646.5,2.0086005]
[1744245469557,13.8072,1646.6,1645.9,0.00911494]
[1744245469751,1.2154,1646.0,1645.9,0.00911494]
[1744245469963,3.0383,1646.2,1646.0,2.0086005]
[1744245469964,1.21539,1646.1,1646.0,2.0086005]
[1744245470165,9.30712,1646.2,1646.0,2.0086005]
[1744245470355,1.21524,1646.3,1646.2,1.21525]
[1744245470556,5.834,1646.5,1646.3,1.21518]
[1744245470756,1.21517,1646.4,1646.3,1.21518]
[1744245470955,1.21517,1646.4,1646.3,2.9565]
[1744245471164,1.21517,1646.4,1646.3,4.9651005]
[1744245471863,1.21517,1646.4,1646.3,7.8229005]
[1744245472260,1.21525,1646.2,1646.1,5.996]
[1744245472464,4.42305,1646.2,1646.1,8.8538]
[1744245472761,4.42305,1646.2,1646.1,12.0777305]
[1744245473067,6.09924,1646.3,1646.1,12.0777305]
[1744245473266,1.21525,1646.2,1646.1,7.21133]
[1744245473462,6.09921,1646.3,1646.2,2.0086005]
[1744245473667,3.2078,1646.5,1646.2,6.1709905]
[1744245473867,3.2078,1646.5,1646.3,6.2148805]
[1744245474166,1.21511,1646.4,1646.3,6.2148805]
[1744245474368,1.21511,1646.4,1646.3,4.20628]
[1744245474570,1.21511,1646.4,1646.3,4.9997005]
[1744245476269,1.21511,1646.4,1646.3,6.2148805]
[1744245477472,1.21511,1646.4,1646.3,4.9997005]
[1744245479282,4.11641,1646.4,1646.3,2.0086005]
[1744245479781,1.21533,1646.1,1646.0,2.9804]
[1744245479988,1.21533,1646.1,1646.0,2.0086005]
[1744245480182,1.21526,1646.2,1646.0,2.0086005]
[1744245480486,1.21529,1646.2,1646.1,2.0086005]
[1744245480684,1.21532,1646.2,1646.0,2.0086005]
[1744245480886,1.21519,1646.3,1646.2,1.21521]
[1744245481288,1.21518,1646.3,1646.2,2.0086005]
[1744245481681,3.2078,1646.4,1646.3,1.21518]
[1744245481880,3.2078,1646.4,1646.3,3.2237805]
[1744245482492,4.42291,1646.4,1646.3,2.0086005]
[1744245482990,4.42291,1646.4,1646.3,3.2237805]
[1744245483288,3.2078,1646.4,1646.3,3.2237805]
[1744245483583,4.42291,1646.4,1646.3,2.0086005]
[1744245483784,4.42291,1646.4,1646.2,1.21525]
[1744245483987,4.42291,1646.4,1646.3,2.0086005]
[1744245485286,1.2154,1646.0,1645.9,4.08097494]
[1744245485791,4.4232,1646.0,1645.9,4.87411544]
[1744245486495,4.4232,1646.0,1645.9,4.97341544]
[1744245486690,4.4232,1646.0,1645.9,0.00911494]
[1744245486995,9.4232,1646.0,1645.9,0.00911494]
[1744245487493,12.4222,1646.0,1645.9,0.00911494]
[1744245488883,7.4222,1646.0,1645.9,0.00911494]
[1744245489085,4.4232,1646.0,1645.9,2.01771544]
[1744245490388,7.3407,1646.0,1645.9,2.01771544]
[1744245490589,4.4232,1646.0,1645.9,2.01771544]
[1744245490990,7.3407,1646.0,1645.9,2.01771544]
[1744245491196,7.3407,1646.0,1645.9,5.00551544]
[1744245491897,3.2078,1646.2,1645.9,10.00551544]
[1744245492189,4.4231,1646.2,1646.0,3.2239605]
[1744245492395,4.42305,1646.2,1646.1,4.28183]
[1744245492596,11.12089483,1646.4,1646.2,1.21525]
[1744245492796,1.21518,1646.3,1646.2,6.2903505]
[1744245492997,1.21518,1646.3,1646.2,4.28175]
[1744245493197,1.21518,1646.3,1646.2,6.2903505]
[1744245493383,1.21518,1646.3,1646.2,5.0751005]
[1744245493788,14.82846768,1646.4,1646.2,6.2902905]
[1744245493997,16.04363768,1646.4,1646.3,2.0086005]
[1744245495997,12.83583768,1646.4,1646.3,3.2237805]
[1744245496497,2.12670435,1646.4,1646.3,3.2237805]
[1744245496703,9.12209539,1646.4,1646.3,6.0660805]
[1744245497092,7.90692539,1646.4,1646.3,9.0818805]
[1744245497396,7.90692539,1646.4,1646.3,15.0778805]
[1744245497596,9.12203539,1646.4,1646.3,15.0778805]
[1744245498193,7.90692539,1646.4,1646.3,20.0778805]
[1744245498604,7.90692539,1646.4,1646.3,15.0778805]
[1744245499206,7.90692539,1646.4,1646.3,20.0778805]
[1744245499799,7.90692539,1646.4,1646.3,15.0778805]
[1744245500106,7.90692539,1646.4,1646.3,20.0778805]
[1744245500413,10.54219805,1646.6,1646.3,20.0778805]
[1744245500414,3.71256054,1646.5,1646.4,1.21511]
[1744245500701,9.33630299,1646.7,1646.6,1.21496]
[1744245501406,10.55119299,1646.7,1646.6,1.21496]
[1744245501608,1.21503,1646.6,1646.5,1.215]
[1744245501805,9.33630299,1646.7,1646.6,1.21496]
[1744245502108,10.55119299,1646.7,1646.6,1.21496]
[1744245502308,1.21496,1646.6,1646.5,4.18807]
[1744245502603,1.21496,1646.6,1646.5,2.9731]
[1744245502810,4.42276,1646.6,1646.5,2.9731]
[1744245503010,7.34976,1646.6,1646.5,2.9731]
[1744245503910,7.34976,1646.6,1646.5,4.18813]
[1744245504115,4.42276,1646.6,1646.5,2.9731]
[1744245504500,3.2078,1646.6,1646.3,5.8581]
[1744245504704,4.42276,1646.6,1646.5,4.26553]
[1744245505509,4.42276,1646.6,1646.5,3.0505]
[1744245506499,1.21508,1646.5,1646.4,1.2151]
[1744245507106,4.42281,1646.6,1646.5,1.21503]
[1744245507613,3.2078,1646.6,1646.3,5.88026]
[1744245507801,4.42282,1646.6,1646.4,4.20694]
[1744245508414,4.42282,1646.6,1646.5,1.21503]
[1744245508613,4.42282,1646.6,1646.5,4.20693]
[1744245509014,4.42282,1646.6,1646.5,2.9919]
[1744245509513,4.42282,1646.6,1646.5,4.20693]
[1744245510015,1.21496,1646.6,1646.5,4.20689]
[1744245510207,0.00911494,1646.7,1646.6,1.21496]
[1744245510408,0.00911494,1646.7,1646.6,7.11526]
[1744245510604,0.00911494,1646.7,1646.6,5.9003]
[1744245510811,1.22400494,1646.7,1646.6,5.9003]
[1744245511009,1.22400494,1646.7,1646.6,2.9652]
[1744245511210,4.30730494,1646.7,1646.6,2.9652]
[1744245515021,0.00911494,1646.7,1646.6,4.18016]
[1744245515316,1.22400494,1646.7,1646.6,4.18016]
[1744245515518,1.22400494,1646.7,1646.6,2.9652]
[1744245515719,1.22400494,1646.7,1646.6,4.18016]
[1744245516018,1.22400494,1646.7,1646.6,2.9652]
[1744245516611,4.12810494,1646.7,1646.6,2.9652]
[1744245518210,1.22400494,1646.7,1646.6,2.9652]
[1744245518414,0.00911494,1646.7,1646.6,4.18016]
[1744245518818,1.22400494,1646.7,1646.6,4.18016]
[1744245519314,1.22400494,1646.7,1646.6,2.9652]
[1744245519520,1.22400494,1646.7,1646.6,4.18016]
[1744245520221,1.22400494,1646.7,1646.6,2.9652]
[1744245520914,1.22400494,1646.7,1646.6,4.18016]
[1744245521522,1.22400494,1646.7,1646.6,2.9652]
[1744245522515,0.00911494,1646.7,1646.6,4.18016]
[1744245522715,4.43180494,1646.7,1646.6,2.9652]
[1744245523721,1.22400494,1646.7,1646.6,4.18016]
[1744245524017,0.00911494,1646.7,1646.6,4.18016]
[1744245524422,1.22400494,1646.7,1646.6,4.18016]
[1744245524624,4.43180494,1646.7,1646.6,2.9652]
[1744245525018,1.21503,1646.5,1646.4,7.7158]
[1744245525525,1.21503,1646.5,1646.4,2.9328]
[1744245525821,1.21518,1646.3,1646.1,1.21527]
[1744245526323,1.21518,1646.3,1646.2,3.77335]
[1744245526628,1.21518,1646.3,1646.2,2.5581]
[1744245526929,1.21518,1646.3,1646.2,3.77335]
[1744245527126,1.21513,1646.4,1646.3,1.21518]
[1744245527326,1.21513,1646.4,1646.3,3.77328]
[1744245527622,1.21513,1646.4,1646.3,2.5581]
[1744245528723,1.21533,1646.1,1646.0,16.1024]
[1744245528922,1.2154,1646.0,1645.9,0.00911494]
[1744245529121,11.2036,1646.0,1645.9,0.00911494]
[1744245529323,1.21562,1645.7,1645.6,2.5644]
[1744245529525,4.42342,1645.7,1645.6,2.5644]
[1744245529823,1.2157,1645.6,1645.5,14.24290239]
[1744245530024,3.9023,1645.6,1645.5,14.24290239]
[1744245530426,6.4809,1645.6,1645.5,14.24290239]
[1744245530729,1.2157,1645.6,1645.5,15.45864239]
[1744245530929,4.73311494,1645.7,1645.5,15.45864239]
[1744245531124,5.94877494,1645.7,1645.6,2.5644]
[1744245531430,5.94877494,1645.7,1645.6,5.1536]
[1744245531627,9.15657494,1645.7,1645.6,5.1536]
[1744245531925,5.94877494,1645.7,1645.6,2.5644]
[1744245533332,0.00911494,1645.7,1645.4,0.00911494]
[1744245533524,1.22475494,1645.7,1645.5,1.21577]
[1744245533830,1.22475494,1645.7,1645.6,2.7409]
[1744245534923,0.00911494,1645.7,1645.6,3.9566]
[1744245535631,0.00911494,1645.7,1645.6,8.9566]
[1744245535824,9.32718805,1646.2,1646.1,1.21533]